Cogmind - Beta 13 @@@ ROGUE MODE // 2024.06.22 @ 00:10:55 Player: Jammed Result: Destroyed by G-34 Mercenary with Small Laser Performance ------------- Evolutions (0) 0 Regions Visited (2) 400 Robots Destroyed (16) 80 Value Destroyed (376) 376 Prototype IDs (0) 0 Alien Tech Used (0) 0 Bonus (0) 0 TOTAL SCORE: 856 Bonus ------- None Cogmind --------- Core Integrity 0/250 Matter 298/300 Energy 100/100 System Corruption 0% Temperature Cool (6) Movement Core (1400) Ox27 Location -10/Mines Parts ------- > --- POWER (1) -------- (None) > --- PROPULSION (2) --- (None) > --- UTILITY (2) ------ Improved Heat Sink Huge Storage Unit > --- WEAPON (2) ------- Small Laser > --- INVENTORY (25) --- Light Ion Engine Light Treads Light Treads Wheel Wheel Improved Heat Sink High-capacity Battery (250) Visual Processing Unit Sensor Array Seismic Detector Light Armor Plating Small Laser Particle Gun Slug Cannon Grenade Launcher Grenade Launcher Grenade Launcher Grenade Launcher Mining Laser Peak State ------------ > --- POWER ------------ Light Nuclear Core > --- PROPULSION ------- Light Treads Compact Wheel > --- UTILITY ---------- Improved Heat Sink Huge Storage Unit > --- WEAPON ----------- Medium Laser Small Laser > --- INVENTORY -------- Light Ion Engine Light Treads Light Treads Wheel Wheel Light Armor Plating Small Laser Small Laser Grenade Launcher Mining Laser [Rating: 12] Favorites ----------- Power Light Nuclear Core Engine Ion Engine Power Core Light Nuclear Core Propulsion Compact Wheel Treads Light Treads Leg Aluminum Leg Wheel Compact Wheel Utility Huge Storage Unit Device Improved Heat Sink Storage Huge Storage Unit Weapon Small Laser Energy Gun Small Laser Ballistic Gun Assault Rifle Special Weapon Mining Laser Build | -11 -10 -10 ------- Run | Yrd Mat Min Slots Evolved . | . . . Power . | . . . Propulsion . | . . . Utility . | . . . Weapon . | . . . Parts Attached 21 | 1 20 . Power 1 | . 1 . Engine . | . . . Core 1 | . 1 . Reactor . | . . . Propulsion 7 | . 7 . Treads 3 | . 3 . Leg . | . . . Wheel 4 | . 4 . Hover . | . . . Flight . | . . . Utility 4 | 1 3 . Device 3 | 1 2 . Storage 1 | . 1 . Processor . | . . . Hackware . | . . . Protection . | . . . Artifact . | . . . Weapon 9 | . 9 . Energy Gun 3 | . 3 . Energy Cannon . | . . . Ballistic Gun 4 | . 4 . Ballistic Cannon . | . . . Launcher . | . . . Special Weapon 2 | . 2 . Impact Weapon . | . . . Slashing Weapon . | . . . Piercing Weapon . | . . . Special Melee Weapon . | . . . Unidentified Prototypes . | . . . Parts Lost 8 | . 5 3 Power 2 | . 1 1 Propulsion 2 | . 1 1 Utility 1 | . 1 . Weapon 3 | . 2 1 Highest Loss Streak 3 | . 2 3 To Critical Strikes . | . . . Average Slot Usage (%) 89 | . 90 80 Engine 3 | . 3 . Core 10 | . 10 12 Treads 8 | . 8 . Wheel 13 | . 13 11 Device 13 | . 13 14 Storage 14 | . 14 14 Energy Gun 18 | . 18 14 Ballistic Gun 6 | . 5 12 Naked Turns . | . . . Heaviest Build 90 | 14 90 89 Greatest Support 20 | 20 20 16 Greatest Overweight (x) 8 | . 8 5 Average Overweight (x) 5 | . 5 5 Largest Inventory Capacity 25 | 8 25 25 Average Capacity 24 | 8 24 25 Most Carried 19 | 7 18 19 Average Carried 10 | 6 9 18 Final Capacity 25 | 8 25 25 Final Carried 19 | 7 18 19 Class Distribution -------------------- 85% | Mutant 14% | Scavenger-Mutant Dominant Class ---------------- Mutant | -10/Materials Mutant | -10/Mines Resources | -11 -10 -10 ----------- Run | Yrd Mat Min Matter Collected 426 | 210 216 . Remotely . | . . . Salvage Created 663 | 91 572 . Parts 37 | 8 29 . Haulers Intercepted 1 | . 1 . Recyclers Shooed 4 | 1 3 . Parts Field Recycled . | . . . Retrieved Matter . | . . . Parts Self-Destructed . | . . . Prevented . | . . . Kills | -11 -10 -10 ------- Run | Yrd Mat Min Combat Hostiles Destroyed 8 | . 8 . Guns 8 | . 8 . Classes Destroyed 6 | 2 4 . Builder 1 | . 1 . Tunneler 2 | 2 . . Hauler 1 | . 1 . Recycler 2 | 1 1 . Watcher 2 | . 2 . Grunt 8 | . 8 . Best Kill Streak 4 | 2 4 . Combat Bots Only 2 | . 2 . Max Kills in Single Turn 1 | 1 1 . Gunslinging . | . . . Exploded . | . . . Melee . | . . . Uniques/NPCs Destroyed . | . . . Combat | -11 -10 -10 -------- Run | Yrd Mat Min Hostile Shots Fired 79 | . 49 30 Missed 15 | . 9 6 Damage Taken 869 | . 556 313 Core 251 | . 102 149 Absorbed by Shields . | . . . Core Remaining (%) 100 | 100 . . Volleys Fired 75 | 7 58 10 Largest 2 | 2 2 2 Hottest 100 | 90 100 60 Shots Fired 120 | 14 91 15 Gun 116 | 14 87 15 Cannon . | . . . Launcher . | . . . Special 4 | . 4 . Kinetic 17 | . 12 5 Thermal 103 | 14 79 10 Explosive . | . . . Electromagnetic . | . . . Robot Hit Streak 16 | 4 16 10 Robot Miss Streak 4 | 1 4 2 Penetration Max . | . . . Secondary Targets . | . . . Shots Hit Robots 76 | 9 55 12 Core Hits 33 | 4 27 2 Critical Kills . | . . . Critical Parts Destroyed . | . . . Critical Strikes 2 | . 2 . Burn 2 | . 2 . Melee Attacks . | . . . Impact . | . . . Slashing . | . . . Piercing . | . . . Sneak Attacks . | . . . Combat Hostiles . | . . . Follow-up Attacks . | . . . Damage Inflicted 963 | 110 695 158 Guns 963 | 110 695 158 Cannons . | . . . Explosions . | . . . Melee . | . . . Ramming . | . . . Kinetic 163 | . 104 59 Thermal 800 | 110 591 99 Explosive . | . . . Electromagnetic . | . . . Impact . | . . . Slashing . | . . . Piercing . | . . . Highest Corruption . | . . . Average Corruption . | . . . Corruption Purged . | . . . Corruption Blocked . | . . . Overload Shots . | . . . Overflow Damage . | . . . Projectiles . | . . . Explosions . | . . . Melee . | . . . Knockbacks . | . . . Impact . | . . . Kinetic . | . . . Secondary . | . . . Self-Inflicted Damage . | . . . Shots . | . . . Rammed . | . . . Targets Rammed . | . . . Kicked . | . . . Crushed . | . . . Highest Temperature 213 | 180 213 8 Average Temperature 75 | 79 75 8 Received Heat Transfer 597 | . 396 201 Siege Activations . | . . . Robots Corrupted . | . . . Combat Hostiles . | . . . Parts Fried . | . . . Impact Corruptions . | . . . Robots Melted . | . . . Combat Hostiles . | . . . Parts Melted 2 | . 2 . Heat Transferred 2266 | 297 1769 200 Parts Sabotaged . | . . . Parts Stolen . | . . . Parts Stripped . | . . . Power Chain Reactions . | . . . Alert | -11 -10 -10 ------- Run | Yrd Mat Min Peak Influence 88 | 15 88 . Initial 9 | . 9 . Average 29 | 10 31 . Maximum Alert Level . | . . . Low Security (%) 100 | 100 100 100 Level 1 . | . . . Level 2 . | . . . Level 3 . | . . . Level 4 . | . . . Level 5 . | . . . High Security . | . . . Max Security . | . . . Squads Dispatched 1 | . 1 . Investigation . | . . . Extermination . | . . . Reinforcement 1 | . 1 . Assault . | . . . Garrison . | . . . Intercept . | . . . Searches Triggered . | . . . Construction Impeded . | . . . Haulers Reinforced . | . . . Active Scanning Responses . | . . . Cargo Convoy Interrupts . | . . . Stealth | -11 -10 -10 --------- Run | Yrd Mat Min Distress Signals . | . . . Communications Jammed . | . . . Distress Signals . | . . . Times Spotted 18 | . 14 4 Peak Tracking Total 4 | . 2 4 Tactical Retreats 1 | . 1 . Traps | -11 -10 -10 ------- Run | Yrd Mat Min Traps Triggered 3 | . 3 . Indirectly . | . . . Trap Hack Attempts . | . . . Triggered . | . . . Disarmed . | . . . Reprogrammed . | . . . Reused . | . . . Traps Extracted . | . . . Installed . | . . . Triggered . | . . . Machines | -11 -10 -10 ---------- Run | Yrd Mat Min Machines Disabled . | . . . Max in Single Turn . | . . . Machines Repaired . | . . . Machines Dismantled . | . . . Machines Sabotaged . | . . . Overloaded Fab Kills . | . . . Hacking | -11 -10 -10 --------- Run | Yrd Mat Min Machines Accessed 7 | . 7 . Terminals 6 | . 6 . Fabricators . | . . . Repair Stations . | . . . Recycling Units 1 | . 1 . Scanalyzers . | . . . Garrison Access . | . . . Total Hacks 17 | . 17 . Successful 11 | . 11 . Failed 6 | . 6 . Catastrophic 1 | . 1 . Database Lockouts . | . . . Manual 10 | . 10 . Terminals 15 | . 15 . Fabricators . | . . . Repair Stations . | . . . Recycling Units 2 | . 2 . Scanalyzers . | . . . Garrison Access . | . . . Terminal Hacks 7 | . 7 . Part Schematic 1 | . 1 . Robot Analysis 4 | . 4 . Locate Traps 1 | . 1 . Dispatch Records 1 | . 1 . Fabricator Hacks . | . . . Repair Station Hacks . | . . . Recycling Unit Hacks 1 | . 1 . Report Inventory 1 | . 1 . Scanalyzer . | . . . Garrison Access Hacks . | . . . Unauthorized Hacks 3 | . 3 . Terminals 3 | . 3 . Botnet 2 | . 2 . Operators 1 | . 1 . Fabricators . | . . . Repair Stations . | . . . Recycling Units . | . . . Scanalyzers . | . . . Garrison Access . | . . . Data Cores Recovered . | . . . Used . | . . . Hacking Detections 7 | . 7 . Full Trace Events . | . . . Feedback Events . | . . . Feedback Blocked . | . . . Robot Schematics Acquired . | . . . Robots Built . | . . . Authchips . | . . . Time . | . . . Total Robot Build Rating . | . . . Part Schematics Acquired 1 | . 1 . Parts Built . | . . . Authchips . | . . . Time . | . . . Total Part Build Rating . | . . . Parts Repaired . | . . . Time . | . . . Parts Recycled . | . . . Recycled Matter . | . . . Retrieved Matter . | . . . Retrieved Components . | . . . Parts Scanalyzed . | . . . Part Schematics Acquired . | . . . Parts Damaged . | . . . Bothacking | -11 -10 -10 ------------ Run | Yrd Mat Min Used RIF Installer . | . . . Robots Hacked . | . . . Non-combat . | . . . Combat . | . . . Robot Hacks Applied . | . . . Relay Couplers Released . | . . . Fabnet Peak Effective % . | . . . Robots Rewired . | . . . Allies Hacked . | . . . Hacks Repelled . | . . . Allies | -11 -10 -10 -------- Run | Yrd Mat Min Total Allies . | . . . Largest Group . | . . . Highest-Rated Group . | . . . Highest-Rated Ally . | . . . Total Orders . | . . . Ally Attacks . | . . . Total Damage . | . . . Kills . | . . . Allies Corrupted . | . . . Allies Melted . | . . . Intel | -11 -10 -10 ------- Run | Yrd Mat Min Robot Analysis Total 4 | . 4 . Derelict Logs Recovered . | . . . Drone Launches . | . . . Drone Recoveries . | . . . Exploration | -11 -10 -10 ------------- Run | Yrd Mat Min Turns Passed 2217 | 78 2006 133 Spaces Moved 871 | 19 792 60 Core . | . . . Treads 78 | . 78 . Legs 28 | 19 9 . Wheels 765 | . 705 60 Hover . | . . . Flight . | . . . Fastest Speed 120 | 120 120 175 Average Speed 204 | 120 209 175 Slowest Speed 480 | 120 480 175 Overloaded Moves . | . . . Propulsion Burnouts . | . . . Robots Hopped . | . . . Cave-ins Triggered . | . . . Exploration Rate (%) 41 | 3 98 23 Regions Visited 2 Branch Regions 1 Pre-discovered Areas . | . . . Known Exits Taken . | . . . Unknown Exits Taken 2 | 1 1 . Scrap Searched . | . . . Spaces Dug 4 | . 4 . Terrain Destroyed 4 | . 4 . Melee . | . . . Projectile 4 | . 4 . AOE . | . . . Terrain Rammed . | . . . Walls Destroyed . | . . . Machines Disabled . | . . . Actions | -11 -10 -10 --------- Run | Yrd Mat Min Total 1171 | 60 1038 73 Wait 183 | 31 150 2 Move 869 | 18 791 60 Hop . | . . . Pick Up 18 | 2 15 1 Fast Attach 11 | 1 10 . Attach 4 | . 4 . Detach . | . . . Swap 6 | . 6 . Drop 5 | 1 4 . Fire 75 | 7 58 10 Melee . | . . . Ram . | . . . Kick . | . . . Crush . | . . . Escape Stasis . | . . . Rewire . | . . . Trap . | . . . Miscellaneous . | . . . Route ------- -11/Scrapyard -10/Materials (discovered 6 exits: [*Mat x3] / [*Min x2] / [*Sub]) -10/Mines History --------- Turn | Location | Event 20 | -11/Scrapyard | Discovered new exit (range 2) 79 | -11/Scrapyard | Entered Materials 318 | -10/Materials | Build established: Mutant 1174 | -10/Materials | Discovered new exit (range 10) 1301 | -10/Materials | Build established: Scavenger-Mutant 1515 | -10/Materials | Discovered new exit (range 16) 1531 | -10/Materials | Discovered new exit (range 6) 1626 | -10/Materials | Build established: Mutant 1665 | -10/Materials | Discovered new exit (range 3) 1738 | -10/Materials | Discovered new exit (range 5) 1979 | -10/Materials | Discovered new exit (range 16) 2085 | -10/Materials | Entered Mines 2101 | -10/Mines | A weapon hastily lodged in a ceiling crevice suddenly fell to the ground 2152 | -10/Mines | Met a Derelict bent on vengeance 2210 | -10/Mines | Core integrity fell below 50% 2216 | -10/Mines | Core integrity fell below 20% 2218 | -10/Mines | Destroyed by G-34 Mercenary with Small Laser Last Messages --------------- Assault Rifle (37%) 01872_ K-01 Serf cleans the Processing Tank. 01920_ K-01 Serf cleans the Electrolysis Chamber. 01941_ Acquired 12 matter. 01979_ EXIT=FOUND 02002_ Acquired Grenade Launcher. 02063_ K-01 Serf cleans the Electrolysis Chamber. LOCATION=UNKNOWN GOAL=ESCAPE Something is scanning the area. 02101_ A Slug Cannon has been hastily shoved under some rubble with a note attached: "It's not as slow as it sounds." 02105_ Acquired Slug Cannon. 02195_ Com. Wheel destroyed. 02200_ Lgt. Nuclear Core destroyed. 02201_ Critical hit (Burn: +37). 02207_ Assault Rifle destroyed. 02208_ G-47 Trooper destroyed. 02208_ R-06 Scavenger collects Imp. Heat Sink. 02218_ T-07 Excavator destroyed. Map ----- +----------------------------------------------------+ | ??????????????????????????###### ##????????? | | ?????????????????????????## ## ##?????????? | | ????????????????????????## #??????????? | | ????????????????????????# #??????????? | | ????????????????????????## # ##??????????? | | ?????????????????????????# ## #???????????? | | ?????????????????????????# ## #???????????? | | ?????????????????????????# ### ##???????????? | | ?????????????????????????# #?####????????????? | | ?????????????????????????# #?????????????????? | | ?????????????????????????# #?????????????????? | | ?????????????????????????# #?????????????????? | | ?????????????????????????# #?????????????????? | | ?????????????????????????# #?????????????????? | | ?????????????????????????# #?????????????????? | | ?????????????????????????# #?????????????????? | | ?????????????????????????# #?????????????????? | | ?????????????????????????# #?????????????????? | | ?????????????????????????# #?????????????????? | | ?????????????????????????# #?????????????????? | | ?????????????????????????# #?????????????????? | | ?????????????????????????# #?????????????????? | | ?????????????????????????# #?????????????????? | | ?????????????????????????# #?????????????????? | | ????????????????????????##gg#?????????????????? | | ?????????????????########@ ##????????????????? | | ?????????? %%| #????????????????? | | ?????????? g= #????????????????? | | ?????????? ####### ##????????????????? | | ???????????? ?????????? #?????????????????? | | ?????????????????????? #?????????????????? | | ????????????????????? ?????????????????? | | ???????????????????? ????????????????? | | ??????????????????? ### ????????????????? | | ??????????????????? #??## ##???????????????? | | ??????????????????####?????###????????????????? | | ??????????????????????????????????????????????? | | ??????????????????????????????????????????????? | | ??????????????????????????????????????????????? | | ??????????????????????????????????????????????? | | ??????????????????????????????????????????????? | | ??????????????????????????????????????????????? | | ??????????????????????????????????????????????? | | ??????????????????????????????????????????????? | | ??????????????????????????????????????????????? | | ??????????????????????????????????????????????? | | ??????????????????????????????????????????????? | | ??????????????????????????????????????????????? | | | | | +----------------------------------------------------+ Best States ------------- Heat Dissipation 39 Energy Generation 14 Energy Capacity 250 Matter Stores 300 Matter Capacity 300 Sight Range 16 Terrain Scan Density 10 Evasion (%) 55 Recoil Reduction 1 Item Schematics ----------------- Huge Storage Unit | -10/Materials | Hacked Robot Schematics ------------------ None Fabricated ------------ Nothing Alien Tech Used ----------------- None Achievements -------------- None Challenges ------------ None Game ------ Seed MappingAdvancedCharger Manual? 0 Play Time 00:12:32 Cumulative 151.8 hours Start 2024.06.19 @ 02:24:09 End 2024.06.22 @ 00:10:55 Sessions 5 Manual Loads 0 Difficulty Rogue Special Mode None Game No. 97 Rogue 97 Adventurer 0 Explorer 0 Win Type - Total 2 Types 1/0/0/1/0/0/0/0/0 Lore% 67 Gallery% 58 Achievement% 53 Wizard Run 0 Options --------- Layout 0 ASCII 0 Keyboard 0 Movement Mouse Keybinds 0 Fullscreen 1 Font 18/SmallcapsGlow Map View 76x50 Zoom Use 0% Tactical HUD 1 Map Filters NONE Filters NONE Steam 1 RUN: 74b87a88-0ec0-4f51-a766-b26f6d294065